bitfinex-derivatives/quotes_BTCF0:USTF0_20250417
["timestamp","ask_amount","ask_price","bid_price","bid_amount"]
[1744903535968,0.0591934,84485.0,84482.0,0.00019683]
[1744903536271,0.1183883,84483.0,84482.0,0.00019683]
[1744903536571,0.1583883,84483.0,84482.0,0.00019683]
[1744903536770,0.1183925,84480.0,84479.0,0.035]
[1744903536974,0.0791966,84480.0,84476.0,0.000108]
[1744903537162,0.1184037,84472.0,84471.0,0.0336]
[1744903537370,0.1284037,84472.0,84471.0,0.0336]
[1744903537570,0.1284037,84472.0,84471.0,0.1520051]
[1744903537769,0.1284037,84472.0,84471.0,0.1886051]
[1744903538072,0.1284037,84472.0,84471.0,0.07028]
[1744903539274,0.0451,84472.0,84464.0,0.1775199]
[1744903539574,0.0451,84472.0,84464.0,0.18626414]
[1744903539575,0.4792135,84465.0,84464.0,0.18626414]
[1744903539771,0.1484135,84465.0,84464.0,0.18611834]
[1744903540073,0.1484135,84465.0,84464.0,0.30461324]
[1744903540778,0.36088,84477.0,84471.0,0.1184051]
[1744903540779,0.1776086,84472.0,84471.0,0.1184051]
[1744903540979,0.2960136,84472.0,84471.0,0.1184051]
[1744903543777,0.2960136,84472.0,84471.0,0.1898051]
[1744903544279,0.2960136,84472.0,84471.0,0.0714]
[1744903544470,0.2960136,84472.0,84471.0,0.0354]
[1744903545076,0.2960136,84472.0,84471.0,0.03548]
[1744903545477,0.2960136,84472.0,84471.0,0.1538851]
[1744903546085,0.2960136,84472.0,84471.0,0.1538051]
[1744903546376,0.1184046,84472.0,84471.0,0.1538051]
[1744903546565,0.1184021,84474.0,84473.0,0.177602]
[1744903547480,0.1521021,84474.0,84473.0,0.177602]
[1744903547666,0.1184021,84474.0,84473.0,0.177602]
[1744903548067,0.0003338,84477.0,84476.0,0.1183981]
[1744903548267,0.0003338,84477.0,84476.0,0.1530981]
[1744903548465,0.0004138,84477.0,84476.0,0.1884981]
[1744903548682,0.0003338,84477.0,84476.0,0.1884981]
[1744903549574,0.0004138,84477.0,84476.0,0.1884981]
[1744903550678,0.0003338,84477.0,84476.0,0.1884981]
[1744903550879,0.0004138,84477.0,84476.0,0.1884981]
[1744903551076,8e-05,84477.0,84476.0,0.1884981]
[1744903551377,2.801e-05,84487.0,84486.0,0.1183841]
[1744903551680,0.0591802,84503.0,84502.0,0.1183616]
[1744903551884,0.1183544,84508.0,84507.0,0.0591766]
[1744903552074,0.1283544,84508.0,84507.0,0.1271766]
[1744903552381,0.1633544,84508.0,84507.0,0.068]
[1744903552576,0.1990544,84508.0,84507.0,0.068]
[1744903552783,0.1991344,84508.0,84507.0,0.1863546]
[1744903552975,0.1634344,84508.0,84507.0,0.1863546]
[1744903553571,0.1634344,84508.0,84507.0,0.1951409]
[1744903553880,0.1634344,84508.0,84507.0,0.0767863]
[1744903554079,0.1991344,84508.0,84507.0,0.0767863]
[1744903554375,0.1991344,84508.0,84507.0,0.1183546]
[1744903555281,0.03508,84508.0,84507.0,0.12733714]
[1744903555675,0.035,84508.0,84507.0,0.12733714]
[1744903555873,0.03508,84508.0,84507.0,0.12733714]
[1744903556078,0.035,84508.0,84507.0,0.12733714]
[1744903556570,0.0353338,84508.0,84507.0,0.12733714]
[1744903560571,0.0353338,84508.0,84507.0,0.19793714]
[1744903560986,0.035,84508.0,84507.0,0.19793714]
[1744903561385,0.0353338,84508.0,84507.0,0.19793714]
[1744903562281,0.0353338,84508.0,84507.0,0.55873714]
[1744903562478,0.0003338,84508.0,84507.0,0.55873714]
[1744903562674,0.00010801,84521.0,84507.0,0.44038254]
[1744903562879,0.00010801,84521.0,84520.0,0.1183364]
[1744903563085,0.03430801,84521.0,84520.0,0.1183364]
[1744903563293,0.0342,84521.0,84520.0,0.1866364]
[1744903563486,0.3845,84530.0,84529.0,0.1183238]
[1744903563678,0.0437,84530.0,84529.0,0.1183238]
[1744903564075,0.02378,84530.0,84529.0,0.1183238]
[1744903564689,0.02378,84530.0,84525.0,0.3608]
[1744903564690,0.0591619,84529.0,84525.0,0.3608]
[1744903564885,0.118328,84526.0,84525.0,0.3608]
[1744903565185,0.118328,84526.0,84525.0,0.4791294]
[1744903565387,0.118328,84526.0,84525.0,0.1183294]
[1744903566780,0.0675,84529.0,84518.0,0.0692]
[1744903566987,0.0343,84525.0,84524.0,0.1183308]
[1744903567992,0.0677,84525.0,84524.0,0.1183308]
[1744903570489,0.0343,84525.0,84524.0,0.4791308]
[1744903570891,0.03438,84525.0,84524.0,0.4791308]
[1744903571492,8e-05,84525.0,84524.0,0.4791308]
[1744903571692,0.0237,84530.0,84529.0,0.1183238]
[1744903572595,0.0237,84530.0,84529.0,0.1543238]
[1744903572995,0.00010801,84539.0,84538.0,0.1183112]
[1744903573202,0.00014581,84544.0,84540.0,0.0591539]
[1744903573396,0.0697,84551.0,84545.0,0.1183014]
[1744903573600,0.3608,84563.0,84554.0,0.1182889]
[1744903573902,0.1182812,84560.0,84554.0,0.1182889]
[1744903574201,0.0359,84562.0,84554.0,0.1182889]
[1744903574202,0.0359,84562.0,84554.0,0.13027515]
[1744903574700,0.0359,84562.0,84554.0,0.16457515]
[1744903574899,0.03008,84555.0,84554.0,0.16457515]
[1744903575096,0.03,84555.0,84554.0,0.16457515]
[1744903575299,0.03008,84555.0,84554.0,0.17343603]
[1744903575999,0.03,84555.0,84554.0,0.17343603]
[1744903576194,0.03008,84555.0,84554.0,0.17343603]
[1744903576398,0.03,84555.0,84554.0,0.17343603]
[1744903576702,0.03008,84555.0,84554.0,0.17343603]
[1744903578093,0.0334,84560.0,84559.0,0.1182819]
[1744903578288,0.0434,84560.0,84559.0,0.1182819]
[1744903579491,0.04348,84560.0,84559.0,0.1182819]
[1744903581011,0.03348,84560.0,84559.0,0.1182819]
[1744903581302,0.0334,84560.0,84559.0,0.1182819]
[1744903581600,0.03348,84560.0,84559.0,0.4790819]
[1744903582508,0.0359,84562.0,84561.0,0.1182791]
[1744903583496,0.0338,84565.0,84559.0,0.4790804]
[1744903583497,0.0338,84565.0,84564.0,0.1182749]
[1744903583707,0.0331,84573.0,84572.0,0.1182637]
[1744903583899,0.0831,84573.0,84572.0,0.1182637]
[1744903584397,0.08318,84573.0,84572.0,0.1182637]
[1744903584598,0.1182637,84572.0,84571.0,0.0319]
[1744903584802,0.1182805,84561.0,84560.0,0.08716]
[1744903585005,0.1282805,84561.0,84560.0,0.08716]
[1744903585197,0.1952805,84561.0,84560.0,0.08716]
[1744903585506,0.1774305,84557.0,84556.0,0.1182853]
[1744903585720,0.1974305,84557.0,84556.0,0.1182853]
[1744903585898,0.1182875,84555.0,84554.0,0.12714898]
[1744903586100,0.1182875,84555.0,84542.0,0.3608]
[1744903586101,0.1182945,84550.0,84542.0,0.3608]
[1744903586312,0.1183112,84539.0,84538.0,0.1183089]
[1744903586994,0.079,84539.0,84538.0,0.1183089]
[1744903587603,0.1973098,84539.0,84538.0,0.13015637]
[1744903587903,0.1973098,84539.0,84538.0,0.1183089]
[1744903588894,0.1973098,84539.0,84538.0,0.12713719]
[1744903591902,0.1973098,84539.0,84538.0,0.16093719]
[1744903592108,0.079,84539.0,84538.0,0.16093719]
[1744903592306,0.0337,84546.0,84545.0,0.1183014]
[1744903592692,0.4114,84551.0,84545.0,0.0591504]
[1744903593004,0.4114,84551.0,84550.0,0.1182945]
[1744903593391,0.4114,84551.0,84550.0,0.4790945]
[1744903593598,0.4114,84551.0,84550.0,0.1182945]
[1744903593900,0.5296931,84551.0,84550.0,0.1182945]
[1744903594201,0.1183028,84545.0,84544.0,0.118302]
[1744903594401,0.1183028,84545.0,84544.0,0.151502]
[1744903594708,0.1853028,84545.0,84544.0,0.151502]
[1744903597209,0.1953028,84545.0,84544.0,0.151502]
[1744903598302,0.1953028,84545.0,84544.0,0.118302]
[1744903598611,0.1183098,84539.0,84538.0,0.00882829]
[1744903598813,0.1974647,84539.0,84538.0,0.1183112]
[1744903599111,0.1183112,84538.0,84537.0,0.0050865]
[1744903599410,0.2059112,84538.0,84537.0,0.0050865]
[1744903600010,0.2059112,84538.0,84537.0,0.1233991]
[1744903600403,0.2059112,84538.0,84537.0,0.01374234]
[1744903605203,0.2059112,84538.0,84537.0,0.00874234]
[1744903606214,0.2059112,84538.0,84528.0,0.0344]
[1744903606215,0.0876,84538.0,84528.0,0.0344]
[1744903606411,0.1183294,84525.0,84524.0,0.0039]
[1744903606611,0.1183364,84520.0,84519.0,0.0348]
[1744903606818,0.1183406,84517.0,84516.0,0.13009998]
[1744903607004,0.4891406,84517.0,84516.0,0.1183416]
[1744903607409,0.1183434,84515.0,84514.0,0.1775163]
[1744903607716,0.1183434,84515.0,84514.0,0.18630483]
[1744903607913,0.1818434,84515.0,84514.0,0.18630483]
[1744903609213,0.1818434,84515.0,84514.0,0.22040483]
[1744903610413,0.118342,84517.0,84516.0,0.1775116]
[1744903610609,0.128342,84517.0,84516.0,0.1775116]
[1744903613916,0.162642,84517.0,84516.0,0.1775116]
[1744903615729,0.162642,84517.0,84516.0,0.059171]
[1744903615921,0.1183434,84515.0,84514.0,0.10206083]
[1744903616308,0.1526434,84515.0,84514.0,0.10206083]
[1744903616619,0.1848434,84515.0,84514.0,0.10206083]
[1744903617805,0.1848434,84515.0,84514.0,0.06796083]
[1744903618009,0.1948434,84515.0,84514.0,0.06796083]
[1744903618518,0.1948434,84515.0,84514.0,0.09986083]
[1744903618708,0.1948434,84515.0,84514.0,0.00878853]
[1744903618910,0.1775207,84513.0,84512.0,0.0591736]
[1744903619119,0.1875207,84513.0,84512.0,0.06822063]
[1744903619419,0.1875207,84513.0,84512.0,0.18656823]
[1744903619918,0.1875207,84513.0,84512.0,0.22086823]
[1744903620119,0.1875207,84513.0,84512.0,0.23257735]
[1744903621020,0.1875207,84513.0,84512.0,0.05505615]
[1744903621219,0.1875207,84513.0,84512.0,0.00904703]
[1744903621411,0.1183476,84512.0,84511.0,0.00508806]
[1744903621718,0.1183686,84497.0,84496.0,8e-05]
[1744903622217,0.1183729,84494.0,84485.0,0.12347503]
[1744903622418,0.1583729,84494.0,84488.0,0.1183808]
[1744903622715,0.1583729,84494.0,84491.0,0.0089325]
[1744903622915,0.1583729,84494.0,84493.0,0.01855709]
[1744903623117,0.1934729,84494.0,84493.0,0.01855709]
[1744903625723,0.1934729,84494.0,84493.0,0.01847709]
[1744903625921,0.1183841,84486.0,84485.0,0.01400535]
[1744903626228,0.1683841,84486.0,84485.0,0.01400535]
[1744903626722,0.1683841,84486.0,84485.0,0.01385955]
[1744903626907,0.2344841,84486.0,84485.0,0.01393955]
[1744903630128,0.05,84486.0,84485.0,0.13232505]
[1744903630313,0.1183636,84505.0,84504.0,0.059178]
[1744903630624,0.267544,84505.0,84504.0,0.059178]
[1744903631025,0.267544,84505.0,84504.0,0.123478]
[1744903631213,0.09,84505.0,84504.0,0.13521765]
[1744903631415,0.2083574,84505.0,84504.0,0.13521765]
[1744903633021,0.2083574,84505.0,84504.0,0.0643]
[1744903633219,0.1714574,84505.0,84504.0,0.0643]
[1744903633625,0.1614574,84505.0,84504.0,0.0643]
[1744903633928,0.1183827,84488.0,84487.0,0.1775688]
[1744903634227,0.1283827,84488.0,84487.0,0.22209625]
[1744903634415,0.1283827,84488.0,84487.0,0.22217625]
[1744903635028,0.1283827,84488.0,84487.0,0.2101488]
[1744903635227,0.1283827,84488.0,84487.0,0.2434488]
[1744903635424,0.01,84488.0,84487.0,0.25516014]
[1744903635626,0.1775454,84503.0,84502.0,0.1183616]
[1744903635828,0.2075454,84503.0,84502.0,0.4791616]
[1744903636026,0.1775454,84503.0,84502.0,0.4791616]
[1744903636220,0.0591806,84503.0,84502.0,0.4791616]
[1744903636726,0.0591806,84503.0,84502.0,0.1848616]
[1744903636927,0.0591806,84503.0,84502.0,0.0665]
[1744903637226,0.1245806,84503.0,84502.0,0.0665]
[1744903637529,0.1345806,84503.0,84502.0,0.0333]
[1744903638729,0.1685806,84503.0,84502.0,0.0333]
[1744903639523,0.2085806,84503.0,84502.0,0.0333]
[1744903639836,0.1183686,84497.0,84496.0,0.00103629]
[1744903640035,0.5391686,84497.0,84496.0,0.00103629]
[1744903640331,0.6049686,84497.0,84496.0,0.00111629]
[1744903641236,0.1183757,84492.0,84491.0,0.0347]
[1744903641427,0.1783757,84492.0,84491.0,0.0347]
[1744903641627,0.2429757,84492.0,84491.0,0.0347]
[1744903642635,0.2429757,84492.0,84491.0,0.03573629]
[1744903644636,0.2429757,84492.0,84491.0,0.03581629]
[1744903645632,0.1783757,84492.0,84491.0,0.03581629]
[1744903646133,0.1783757,84492.0,84491.0,0.0347]
[1744903646535,0.2478757,84492.0,84491.0,0.03573629]
[1744903648941,0.2808757,84492.0,84491.0,0.03573629]
[1744903651643,0.2808757,84492.0,84491.0,0.03581629]
[1744903655155,0.1183841,84486.0,84485.0,0.01385955]
[1744903655453,0.1184051,84471.0,84470.0,0.17802787]
[1744903655652,0.4208,84471.0,84459.0,0.0050912]
[1744903655835,0.1184205,84460.0,84459.0,1e-08]
[1744903656036,0.1584205,84460.0,84459.0,1e-08]
[1744903656442,0.1584205,84460.0,84459.0,8.001e-05]
[1744903656741,0.2229205,84460.0,84459.0,8.001e-05]
[1744903657449,0.2229205,84460.0,84450.0,0.000108]
[1744903657450,0.1184331,84451.0,84450.0,0.000108]
[1744903657649,0.1184373,84448.0,84445.0,0.0316]
[1744903657958,0.1384373,84448.0,84445.0,0.0316]
[1744903658451,0.1384373,84448.0,84447.0,0.36480125]
[1744903659153,0.1384373,84448.0,84447.0,0.00901731]
[1744903659347,0.1184401,84446.0,84445.0,0.0316]
[1744903659549,0.1284401,84446.0,84445.0,0.1500415]
[1744903659947,0.1284401,84446.0,84445.0,0.0316]
[1744903661051,0.1284401,84446.0,84445.0,0.0648]
[1744903661356,0.01,84446.0,84445.0,0.19193715]
[1744903661542,0.0328,84458.0,84451.0,0.1776412]
[1744903661743,0.1184303,84453.0,84452.0,0.1840313]
[1744903661950,0.1484303,84453.0,84452.0,0.1840313]
[1744903664950,0.03,84453.0,84452.0,0.1840313]
[1744903665351,0.2368401,84464.0,84463.0,0.1184121]
[1744903665550,0.2468401,84464.0,84463.0,0.099]
[1744903666345,0.2468401,84464.0,84463.0,0.0666]
[1744903666752,0.2468401,84464.0,84463.0,0.0333]
[1744903666951,0.1184359,84449.0,84446.0,0.1508396]
[1744903667153,0.1484359,84449.0,84446.0,0.0324]
[1744903667351,0.1184387,84447.0,84446.0,0.0324]
[1744903667659,0.1384387,84447.0,84446.0,0.0324]
[1744903668041,0.1717387,84447.0,84446.0,0.099]
[1744903668247,0.1717387,84447.0,84446.0,0.09908]
[1744903669454,0.1717387,84447.0,84446.0,0.06668]
[1744903669646,0.2059387,84447.0,84446.0,0.06668]
[1744903669847,0.2059387,84447.0,84446.0,0.03338]
[1744903670047,0.1184471,84441.0,84440.0,0.0337]
[1744903670249,0.4992471,84441.0,84440.0,0.0337]
[1744903670448,0.4992471,84441.0,84440.0,0.03378]
[1744903670757,0.5684471,84441.0,84440.0,0.0337]
[1744903670954,0.2076471,84441.0,84440.0,0.03378]
[1744903671148,0.2076471,84441.0,84440.0,0.0337]
[1744903673955,0.1384471,84441.0,84440.0,0.0337]
[1744903674845,0.02,84441.0,84440.0,0.1521486]
[1744903675054,0.1384471,84441.0,84440.0,0.1521486]
[1744903675254,0.1384471,84441.0,84440.0,0.1843486]
[1744903675952,0.02,84441.0,84440.0,0.1843486]
[1744903676154,0.1384471,84441.0,84440.0,0.1843486]
[1744903676951,0.1284471,84441.0,84440.0,0.1843486]
[1744903677955,0.0592192,84451.0,84450.0,0.2368601]
[1744903678155,0.0692192,84451.0,84450.0,0.2368601]
[1744903678552,0.2468794,84451.0,84450.0,0.1184312]
[1744903678956,0.1184359,84449.0,84448.0,0.1776551]
[1744903679158,0.1284359,84449.0,84448.0,0.1776551]
[1744903680263,0.1184401,84446.0,84445.0,0.0677]
[1744903680452,0.1284401,84446.0,84445.0,0.0677]
[1744903680653,0.1959401,84446.0,84445.0,8e-05]
[1744903681164,0.11845,84439.0,84438.0,0.0318]
[1744903681351,0.12845,84439.0,84438.0,0.0318]
[1744903681556,0.19595,84439.0,84438.0,0.0318]
[1744903682264,0.19595,84439.0,84438.0,0.0653]
[1744903682665,0.19595,84439.0,84438.0,0.1837514]
[1744903683566,0.01,84439.0,84438.0,0.1837514]
[1744903684164,0.12845,84439.0,84438.0,0.1837514]
[1744903684360,0.01,84439.0,84438.0,0.1837514]
[1744903684865,0.12845,84439.0,84438.0,0.1837514]
[1744903685261,0.16065,84439.0,84438.0,0.1184514]
[1744903685460,0.19235,84439.0,84438.0,0.1185314]
[1744903685660,0.19235,84439.0,84438.0,0.1862314]
[1744903685970,0.55315,84439.0,84438.0,0.03298]
[1744903686167,0.1184528,84437.0,84434.0,0.0329]
[1744903686466,0.1776827,84436.0,84435.0,0.1184548]
[1744903686667,0.2438827,84436.0,84435.0,0.1184548]
[1744903686869,0.2638827,84436.0,84435.0,0.1184548]
[1744903687271,0.1184556,84435.0,84434.0,0.0329]
[1744903687460,0.1384556,84435.0,84434.0,0.0329]
[1744903687660,0.118457,84434.0,84433.0,0.00509277]
[1744903687969,0.138457,84434.0,84433.0,0.00509277]
[1744903688167,0.138457,84434.0,84433.0,0.12355117]
[1744903688168,0.204657,84434.0,84433.0,0.12355117]
[1744903688368,0.204657,84434.0,84433.0,0.00509277]
[1744903689561,0.204657,84434.0,84433.0,0.00517277]
[1744903689757,0.204657,84434.0,84433.0,0.00509277]
[1744903689967,0.204657,84434.0,84433.0,0.00517277]
[1744903690169,0.204657,84434.0,84423.0,0.00019683]
[1744903690170,0.0862,84434.0,84412.0,0.420043]
[1744903690466,0.1184794,84418.0,84417.0,0.0343]
[1744903690668,0.1284794,84418.0,84417.0,0.1527808]
[1744903690857,0.1606794,84418.0,84417.0,0.0343]
[1744903691062,0.1184864,84413.0,84412.0,0.08684]
[1744903691261,0.4892864,84413.0,84412.0,0.000108]
[1744903691472,0.1927864,84413.0,84412.0,0.12765075]
[1744903691675,0.1606864,84413.0,84412.0,0.1184878]
[1744903691873,0.1606864,84413.0,84412.0,0.1844678]
[1744903693677,0.0422,84413.0,84412.0,0.1844678]
[1744903693976,0.0592354,84425.0,84422.0,0.1777072]
[1744903694176,0.0592354,84425.0,84423.0,0.0693]
[1744903694177,0.152471,84424.0,84423.0,0.0693]
[1744903694366,0.192471,84424.0,84423.0,0.0693]
[1744903694675,0.04,84424.0,84423.0,0.1285362]
[1744903694871,0.158471,84424.0,84423.0,0.1285362]
[1744903698388,0.118471,84424.0,84423.0,0.1285362]
[1744903698588,0.153471,84424.0,84423.0,0.1285362]
[1744903698788,0.163471,84424.0,84423.0,0.1285362]
[1744903700690,0.163471,84424.0,84423.0,0.0934362]
[1744903700879,0.228871,84424.0,84423.0,0.0934362]
[1744903701788,0.228871,84424.0,84423.0,0.0935162]
[1744903702192,0.228871,84424.0,84423.0,0.0934362]
[1744903702489,0.228871,84424.0,84423.0,0.0935162]
[1744903703494,0.228871,84424.0,84423.0,0.0593162]
[1744903704188,0.228871,84424.0,84423.0,0.0913162]
[1744903704591,0.228871,84424.0,84423.0,0.0593162]
[1744903704792,0.228871,84424.0,84423.0,8e-05]
[1744903705496,0.228871,84424.0,84423.0,0.1185524]
[1744903706886,0.228871,84424.0,84423.0,0.1511524]
[1744903707896,0.589671,84424.0,84423.0,0.1511524]
[1744903708100,0.589671,84424.0,84423.0,8e-05]
[1744903708691,0.589671,84424.0,84413.0,0.2053656]
[1744903708692,0.118485,84414.0,84413.0,0.2053656]
[1744903708886,0.128485,84414.0,84413.0,0.1184856]
[1744903709086,0.192985,84414.0,84413.0,0.1517856]
[1744903709494,0.192985,84414.0,84413.0,0.1518656]
[1744903709891,0.192985,84414.0,84413.0,0.1856656]
[1744903711689,0.161385,84414.0,84413.0,0.1856656]
[1744903711894,0.01,84414.0,84413.0,0.1856656]
[1744903712202,0.0592372,84422.0,84421.0,0.1777113]
[1744903712397,0.0692372,84422.0,84421.0,0.1777113]
[1744903712702,0.1284738,84422.0,84421.0,0.1777113]
[1744903714703,0.1625738,84422.0,84421.0,0.1777113]
[1744903715405,0.01162396,84422.0,84421.0,0.1777113]
[1744903715599,0.13009776,84422.0,84421.0,0.1777113]
[1744903716106,0.01162396,84422.0,84421.0,0.1777113]
[1744903716305,0.13009776,84422.0,84421.0,0.1777113]
[1744903716502,0.01162396,84422.0,84421.0,0.1777113]
[1744903716709,0.13009776,84422.0,84421.0,0.1777113]
[1744903717016,0.01162396,84422.0,84421.0,0.1777113]
[1744903717805,0.13009776,84422.0,84421.0,0.1777113]
[1744903720508,0.16399776,84422.0,84421.0,0.1777113]
[1744903720709,0.19849776,84422.0,84421.0,0.1777913]
[1744903720904,0.18849776,84422.0,84421.0,0.1777913]
[1744903722814,0.15399776,84422.0,84421.0,0.1777913]
[1744903723312,0.00162396,84422.0,84421.0,0.1777913]
[1744903724714,0.12009776,84422.0,84421.0,0.1777913]
[1744903727110,0.15389776,84422.0,84421.0,0.0592375]
[1744903727316,0.18819776,84422.0,84421.0,0.0592375]
[1744903727517,0.18819776,84422.0,84421.0,0.0593175]
[1744903727718,0.18819776,84422.0,84421.0,0.0592375]
[1744903727912,0.18819776,84422.0,84421.0,0.0917175]
[1744903730724,0.18982172,84422.0,84421.0,0.0917175]
[1744903734625,0.18982172,84422.0,84421.0,8e-05]
[1744903735222,0.1184766,84420.0,84419.0,0.1184777]
[1744903735630,0.2183766,84420.0,84419.0,0.1184777]
[1744903735924,0.2183766,84420.0,84417.0,0.3608]
[1744903735925,0.1184794,84418.0,84417.0,0.3608]
[1744903736528,0.1846794,84418.0,84417.0,0.3608]
[1744903737029,0.18792732,84418.0,84417.0,0.3608]
[1744903737219,0.18792732,84418.0,84417.0,0.36088]
[1744903737730,0.18792732,84418.0,84417.0,0.4793608]
[1744903738726,0.54872732,84418.0,84417.0,8e-05]
[1744903739316,0.06944792,84418.0,84417.0,0.1185608]
[1744903739824,0.03484792,84418.0,84417.0,0.1850608]
[1744903740021,0.03484792,84418.0,84417.0,0.5458608]
[1744903740425,0.15332732,84418.0,84417.0,0.5458608]
[1744903743637,0.15332732,84418.0,84417.0,0.39568]
[1744903743826,0.18602732,84418.0,84417.0,0.36088]
[1744903744138,0.18602732,84418.0,84417.0,0.3608]
[1744903744538,0.18602732,84418.0,84417.0,0.36088]
[1744903744729,0.18765128,84418.0,84417.0,0.36088]
[1744903746739,0.18765128,84418.0,84417.0,0.4793608]
[1744903746924,0.18765128,84418.0,84417.0,0.36088]
[1744903748045,0.18765128,84418.0,84417.0,0.4793608]
[1744903748742,0.18765128,84418.0,84417.0,0.36088]
[1744903749038,0.18765128,84418.0,84417.0,8e-05]
[1744903750433,0.18765128,84418.0,84417.0,0.1185608]
[1744903750633,0.12335128,84418.0,84417.0,0.1185608]
[1744903750842,0.12335128,84418.0,84417.0,0.1856608]
[1744903753141,0.15565128,84418.0,84417.0,0.1856608]
[1744903769351,0.00487188,84418.0,84417.0,0.1856608]
[1744903769572,0.1777003,84427.0,84426.0,0.1184668]
[1744903769756,0.1777003,84427.0,84426.0,0.2177668]
[1744903770057,0.09053155,84429.0,84426.0,0.0993]
[1744903770249,0.15046935,84441.0,84433.0,0.1184584]
[1744903770552,0.032,84440.0,84433.0,0.4792584]
[1744903770749,0.23883248,84434.0,84433.0,0.49081299]
[1744903770950,0.23883248,84434.0,84433.0,0.55561299]
[1744903772247,0.12037548,84434.0,84433.0,0.55561299]
[1744903773662,0.23883248,84434.0,84433.0,0.55561299]
[1744903773858,0.118457,84434.0,84433.0,0.55561299]
[1744903774048,0.1776788,84438.0,84437.0,0.1184528]
[1744903774453,0.1776788,84438.0,84437.0,0.2179528]
[1744903776767,0.2128788,84438.0,84437.0,0.2179528]
[1744903779667,0.2128788,84438.0,84437.0,0.1845528]
[1744903779874,0.2128788,84438.0,84437.0,0.1521528]
[1744903780072,0.2128788,84438.0,84437.0,0.1184528]
[1744903780772,0.2128788,84438.0,84433.0,0.4793658]
[1744903780773,0.118457,84434.0,84433.0,0.4793658]
[1744903781269,0.220457,84434.0,84433.0,0.3608]
[1744903781469,0.220457,84434.0,84433.0,0.4793384]
[1744903781669,0.58288066,84434.0,84433.0,0.1185384]
[1744903782454,0.58288066,84434.0,84433.0,8e-05]
[1744903782658,0.1184584,84433.0,84432.0,0.1184588]
[1744903783068,0.1866584,84433.0,84432.0,0.1184588]
[1744903783859,0.18828206,84433.0,84432.0,0.1184588]
[1744903784066,0.18828206,84433.0,84432.0,0.1533588]
[1744903790872,0.19828206,84433.0,84432.0,0.1533588]
[1744903791172,0.19828206,84433.0,84432.0,0.5512588]
[1744903791373,0.00162366,84433.0,84432.0,0.5512588]
[1744903791577,0.1776683,84443.0,84442.0,0.1184457]
[1744903791968,0.1776683,84443.0,84442.0,0.1555457]
[1744903792173,0.2176683,84443.0,84442.0,0.1555457]
[1744903793082,0.2176683,84443.0,84442.0,0.1918457]
[1744903793467,0.2522683,84443.0,84442.0,0.1918457]
[1744903799597,0.1338224,84443.0,84442.0,0.1918457]
[1744903800292,0.059211,84459.0,84455.0,0.1184275]
[1744903800473,0.15,84456.0,84455.0,0.2047475]
[1744903800672,0.3608,84467.0,84461.0,0.1184191]
[1744903800879,0.00014581,84472.0,84461.0,0.1184191]
[1744903800880,0.00019684,84474.0,84461.0,0.0592093]
[1744903801077,0.00019684,84474.0,84473.0,0.1184023]
[1744903801276,0.1776007,84478.0,84477.0,0.1775905]
[1744903801481,0.1876007,84478.0,84477.0,0.1775905]
[1744903801683,0.0691993,84478.0,84477.0,0.1775905]
[1744903801876,0.01,84478.0,84477.0,0.1775905]
[1744903802078,0.18873831,84480.0,84479.0,0.1183939]
[1744903802289,0.2285925,84480.0,84479.0,0.1183939]
[1744903803190,0.1184009,84474.0,84469.0,8e-05]
[1744903803487,0.6292009,84474.0,84471.0,0.1184047]
[1744903803693,0.6292009,84474.0,84464.0,0.0353]
[1744903803875,0.6292009,84474.0,84456.0,0.0355]
[1744903804076,0.6982009,84474.0,84468.0,0.1184093]
[1744903804379,0.1184149,84464.0,84463.0,8e-05]
[1744903804581,0.5592149,84464.0,84463.0,8e-05]
[1744903804882,0.1776363,84459.0,84458.0,0.1184228]
[1744903805081,0.3168479,84459.0,84458.0,0.1184228]
[1744903805884,0.1184247,84457.0,84456.0,0.1776379]
[1744903806090,0.1984247,84457.0,84456.0,0.1776379]
[1744903806477,0.2692247,84457.0,84456.0,0.2118379]
[1744903807179,0.2692247,84457.0,84456.0,0.0342]
[1744903807378,0.2692247,84457.0,84456.0,0.1526261]
[1744903808291,0.1184443,84443.0,84432.0,0.08628]
[1744903808589,0.1984443,84443.0,84442.0,0.17979001]
[1744903808781,0.1984443,84443.0,84442.0,0.29823571]
[1744903808978,0.2717443,84443.0,84442.0,0.33273571]
[1744903809680,0.2717443,84443.0,84442.0,0.17979001]
[1744903809878,0.2717443,84443.0,84442.0,0.00026572]
[1744903810086,0.2717443,84443.0,84442.0,0.11871142]
[1744903810488,0.2344443,84443.0,84442.0,0.15321142]
[1744903810685,0.2344443,84443.0,84442.0,0.22721142]
[1744903811393,0.116,84443.0,84442.0,0.22721142]
[1744903811584,0.1184324,84452.0,84451.0,0.2368619]
[1744903811785,0.2484324,84452.0,84451.0,0.3089619]
[1744903812293,0.2831324,84452.0,84451.0,0.1905316]
[1744903812495,0.2831324,84452.0,84451.0,0.1313158]
[1744903812792,0.3168324,84452.0,84451.0,0.1313158]
[1744903815092,0.13,84452.0,84451.0,0.1313158]
[1744903815291,0.1184265,84456.0,84455.0,0.1776377]
[1744903815591,0.1184265,84456.0,84455.0,0.5384377]
[1744903815794,0.236829,84467.0,84466.0,0.1184121]
[1744903815990,0.236909,84467.0,84466.0,0.1184121]
[1744903816192,0.236829,84467.0,84466.0,0.1184121]
[1744903816397,0.236909,84467.0,84466.0,0.1184121]
[1744903816600,8e-05,84467.0,84466.0,0.12719898]
[1744903816795,0.2145125,84472.0,84471.0,0.1184037]
[1744903816997,0.2737147,84472.0,84471.0,0.1874037]
[1744903817496,0.2737947,84472.0,84471.0,0.1874037]
[1744903817699,0.0592818,84472.0,84471.0,0.19945792]
[1744903817998,0.0592818,84472.0,84471.0,0.1874037]
[1744903818193,0.1305018,84472.0,84471.0,0.1874037]
[1744903818382,0.1305818,84472.0,84471.0,0.1533037]
[1744903819285,0.1305818,84472.0,84471.0,0.1901037]
[1744903819789,0.1305818,84472.0,84471.0,0.1533037]
[1744903821200,0.0949818,84472.0,84471.0,0.1897037]
[1744903821592,0.1310818,84472.0,84471.0,0.1897037]
[1744903821999,0.1310818,84472.0,84471.0,0.1533037]
[1744903824806,0.1184837,84472.0,84471.0,0.1533037]
[1744903825008,0.1184837,84472.0,84471.0,0.1890037]
[1744903825806,0.1890837,84472.0,84471.0,0.1890037]
[1744903829307,0.4199982,84478.0,84471.0,0.1890037]
[1744903829308,0.00026573,84485.0,84473.0,0.0592007]
[1744903829619,0.3608,84526.0,84492.0,0.0591878]
[1744903829797,0.0959794,84505.0,84502.0,0.0591808]
[1744903829998,0.2159794,84505.0,84504.0,0.1183588]
[1744903830201,0.1568,84505.0,84504.0,0.1183588]
[1744903830404,0.2751574,84505.0,84504.0,0.1551588]